Cogmind - Beta 14 @@@ ROGUE MODE // 2025.03.18 @ 18:28:53 Player: Anting Result: Destroyed by L-61 Swordsman with Power Sword Performance ------------- Evolutions (8) 4000 Regions Visited (23) 4600 Robots Destroyed (97) 485 Value Destroyed (3454) 3454 Prototype IDs (9) 180 Alien Tech Used (6) 1200 Bonus (6021) 6021 TOTAL SCORE: 19940 Bonus ------- High Alert Combat Kills 131 Follower Combat Kills 2173 Entered Garrisons 200 Network Hubs Disabled 400 Acquired ECA 300 Built Enhanced Grunts 300 Used Core Reset Matrix 3000 Friendly Fire -483 Cogmind --------- Core Integrity 0/1450 Matter 168/300 Energy 53/100 System Corruption 19% Temperature Cool (0) Movement Flying (35) Location -2/Testing Parts ------- > --- POWER (2) -------- (None) > --- PROPULSION (7) --- Cesium-ion Thruster > --- UTILITY (13) ----- Advanced Terrain Scan Processor Advanced Target Analyzer Improved Weapon Shielding > --- WEAPON (2) ------- (None) > --- INVENTORY (5) ---- Subatomic Replicator Sigix Broadsword Peak State ------------ > --- POWER ------------ Light Antimatter Reactor Light Quantum Reactor > --- PROPULSION ------- Advanced Heavy Treads Xenon Bombardment Thruster Xenon Bombardment Thruster Xenon Bombardment Thruster Xenon Bombardment Thruster Xenon Bombardment Thruster > --- UTILITY ---------- Advanced Coolant Injector Experimental Energy Well Advanced Sensor Array Advanced Signal Interpreter Advanced Signal Interpreter Advanced Terrain Scan Processor Improved Targeting Computer Advanced Targeting Computer Advanced Target Analyzer Improved Weapon Shielding > --- WEAPON ----------- Heavy Machine Gun Heavy Machine Gun > --- INVENTORY -------- Subatomic Replicator Sigix Terminator Sigix Broadsword [Rating: 119] Favorites ----------- Power Light Deuterium Engine Engine Light Deuterium Engine Power Core Nuclear Core Reactor Light Quantum Reactor Propulsion Improved VTOL Module Treads Light Treads Leg Aluminum Leg Hover Unit Gravmag System Flight Unit Improved VTOL Module Utility Machine Analyzer Device Structural Scanner Storage Medium Storage Unit Processor Machine Analyzer Hackware Improved Hacking Suite Protection Centrium Medium Armor Plating Artifact Phase Armor Weapon Katana Energy Cannon Light EM Pulse Cannon Ballistic Gun Light Assault Rifle Ballistic Cannon Bore Cannon Launcher Missile Launcher Impact Weapon Mace Slashing Weapon Katana Special Melee Weapon Improved Datajack Build | -11 -10 -10 -9 -9 -8 -8 -8 -7 -7 -7 -6 -6 -6 -5 -4 -4 -4 -4 -4 -3 -3 -2 -2 ------- Run | Yrd Mat Min Mat Min Mat Gar Mat Fac Was Fac Fac Low Low Fac Fac Ext Cet Arc Hub Res Qua Res Tes Slots Evolved 16 | . . . 2 . 2 . . 2 . . 2 . . 2 2 . . . . 2 . 2 . Power 1 | . . . . . . . . . . . 1 . . . . . . . . . . . . Propulsion 5 | . . . 2 . . . . . . . . . . 2 . . . . . . . 1 . Utility 10 | . . . . . 2 . . 2 . . 1 . . . 2 . . . . 2 . 1 . Weapon . | . . . . . . . . . . . . . . . . . . . . . . . . Parts Attached 174 | 6 2 8 10 . 7 8 10 25 1 4 9 1 . 9 2 12 2 1 1 10 16 18 12 Power 18 | 1 . 1 . . . 2 1 1 1 . 1 . . 4 . 1 . . . . 3 1 1 Engine 9 | 1 . . . . . 1 1 1 . . 1 . . 2 . . . . . . 2 . . Core 4 | . . 1 . . . 1 . . 1 . . . . . . . . . . . 1 . . Reactor 5 | . . . . . . . . . . . . . . 2 . 1 . . . . . 1 1 Propulsion 51 | 2 . 1 6 . 4 2 5 9 . . 2 . . 2 . 1 . . . 4 2 8 3 Treads 11 | . . . 4 . 3 2 1 . . . . . . . . . . . . . . 1 . Leg 2 | 2 . . . . . . . . . . . . . . . . . . . . . . . Wheel . | . . . . . . . . . . . . . . . . . . . . . . . . Hover 8 | . . . . . . . 4 4 . . . . . . . . . . . . . . . Flight 30 | . . 1 2 . 1 . . 5 . . 2 . . 2 . 1 . . . 4 2 7 3 Utility 64 | 1 2 2 1 . 2 . 2 12 . 4 3 1 . 3 2 2 2 1 . 6 10 5 3 Device 31 | . . . . . . . 1 8 . 4 . 1 . 2 . 1 1 . . 5 5 3 . Storage 10 | 1 2 1 1 . . . . 2 . . . . . . . 1 . . . . 2 . . Processor 12 | . . 1 . . 2 . 1 2 . . 1 . . . . . . . . . 1 2 2 Hackware 6 | . . . . . . . . . . . 2 . . 1 2 . . 1 . . . . . Protection 4 | . . . . . . . . . . . . . . . . . 1 . . 1 1 . 1 Artifact 1 | . . . . . . . . . . . . . . . . . . . . . 1 . . Weapon 41 | 2 . 4 3 . 1 4 2 3 . . 3 . . . . 8 . . 1 . 1 4 5 Energy Gun . | . . . . . . . . . . . . . . . . . . . . . . . . Energy Cannon 5 | . . . 1 . . . . . . . . . . . . 2 . . . . 1 . 1 Ballistic Gun 14 | 2 . 2 2 . . 2 1 . . . . . . . . . . . . . . 3 2 Ballistic Cannon 3 | . . . . . . . . . . . . . . . . 2 . . 1 . . . . Launcher 5 | . . 2 . . . 1 . . . . . . . . . 1 . . . . . . 1 Special Weapon . | . . . . . . . . . . . . . . . . . . . . . . . . Impact Weapon 2 | . . . . . 1 1 . . . . . . . . . . . . . . . . . Slashing Weapon 5 | . . . . . . . 1 2 . . . . . . . . . . . . . 1 1 Piercing Weapon . | . . . . . . . . . . . . . . . . . . . . . . . . Special Melee Weapon 7 | . . . . . . . . 1 . . 3 . . . . 3 . . . . . . . Unidentified Prototypes 11 | . . . . . 1 . . . . . . 1 . 1 . 1 1 . . 2 2 . 2 Corrupted Parts 6 | . . 4 . . . 2 . . . . . . . . . . . . . . . . . System Corruption 22 | . . 11 . . . 11 . . . . . . . . . . . . . . . . . Parts Lost 54 | . . . . . 1 4 . 4 . 2 3 . . . . 1 . . 2 6 18 2 11 Power 7 | . . . . . . 1 . 1 . . . . . . . . . . . . 4 . 1 Propulsion 22 | . . . . . . 2 . 3 . . 2 . . . . 1 . . 1 2 4 1 6 Utility 19 | . . . . . . . . . . 2 . . . . . . . . . 4 9 . 4 Weapon 6 | . . . . . 1 1 . . . . 1 . . . . . . . 1 . 1 1 . Highest Loss Streak 9 | . . . . . 1 4 . 2 . 1 1 . . . . 1 . . 2 3 9 2 8 To Critical Strikes . | . . . . . . . . . . . . . . . . . . . . . . . . Average Slot Usage (%) 87 | . 85 74 90 100 97 94 100 94 100 91 89 92 87 92 93 89 90 90 88 77 51 43 56 Engine 2 | . 14 9 . . . 2 9 5 3 . 5 6 6 8 . . . . . . 1 . . Core 2 | . . 1 11 11 9 3 . . 3 7 . . . . . . . . . . . . . Reactor 1 | . . . . . . . . . . . . . . . 5 5 5 5 5 4 . 2 2 Treads 7 | . . . 31 44 35 34 13 . . . . . . . . . . . . . . 2 3 Hover 3 | . . . . . . . 22 20 . . . . . . . . . . . . . . . Flight 15 | . . 1 10 . . . . 7 30 30 26 25 25 29 30 25 25 25 25 17 10 13 12 Device 10 | . . . . . . . 2 14 15 17 14 12 12 14 15 15 15 15 15 16 5 2 6 Storage 6 | . 14 14 6 11 9 9 9 7 7 7 6 6 6 5 5 5 5 5 5 4 5 4 3 Processor 15 | . . 2 11 11 24 27 24 22 23 17 13 12 12 11 10 10 10 10 10 9 5 11 19 Hackware 7 | . . . . . . . . . . . 9 12 12 11 18 20 20 20 20 18 13 . . Ballistic Gun 3 | . 28 20 15 11 7 5 14 3 . . . . . . . . . . . . . 5 3 Slashing Weapon 3 | . . . . . . . 2 7 7 7 6 6 6 5 5 5 5 5 5 4 3 . . Special Melee Weapon 2 | . . . . . . . . 1 7 2 4 6 6 5 5 3 5 5 3 . . . . Peak Build Rating 119 | 6 7 12 17 18 28 27 36 46 40 46 52 51 51 72 82 92 93 92 94 116 111 100 119 Average Rating 52 | 5 6 6 15 17 24 24 30 40 38 39 49 50 51 59 80 87 89 90 91 101 86 69 82 On Entrance 47 | . 6 7 8 17 18 24 24 36 37 40 46 51 51 51 72 82 90 90 92 86 83 25 100 Naked Turns . | . . . . . . . . . . . . . . . . . . . . . . . . Heaviest Build 40 | 11 26 27 27 22 23 25 20 32 20 20 20 20 20 29 29 40 32 32 32 38 37 34 28 Greatest Support 86 | 20 20 20 86 86 86 85 85 36 20 20 20 20 20 39 30 33 33 33 33 48 54 36 30 Greatest Overweight (x) 8 | . 1 8 1 . 7 . . 3 . . . . . . . 1 . . 1 . . 3 . Average Overweight (x) . | . . 1 . . . . . . . . . . . . . . . . . . . . . Largest Inventory Capacity 15 | 8 15 15 15 10 10 10 10 15 10 10 10 10 10 10 10 10 10 10 10 10 10 5 5 Average Capacity 10 | 7 9 14 8 10 10 10 10 12 10 10 10 10 10 10 10 10 10 10 10 10 9 5 5 Most Carried 15 | 5 10 15 13 9 10 10 10 14 10 10 10 9 9 10 10 10 10 10 10 10 10 5 5 Average Carried 9 | 4 8 12 6 8 9 9 9 11 8 9 8 8 9 8 9 9 9 10 9 9 8 4 4 Final Capacity 15 | 8 10 15 10 10 10 10 10 10 10 10 10 10 10 10 10 10 10 10 10 10 5 5 5 Final Carried 14 | 5 10 14 7 9 10 10 10 8 10 10 8 9 9 10 10 10 10 10 10 9 5 5 3 Class Distribution -------------------- 28% | Mutant 22% | Hacker-Scout 14% | Scout 12% | Commander-Scout 7% | Scavenger-Mutant 4% | Scavenger-Scout 4% | Sprinter Dominant Class ---------------- Mutant | -10/Materials Mutant | -10/Mines Mutant | -9/Materials Mutant | -9/Mines Mutant | -8/Materials Mutant | -8/Garrison Mutant | -8/Materials Scout | -7/Factory Scout | -7/Waste Scout | -7/Factory Scavenger-Scout | -6/Factory Hacker-Scout | -6/Lower Caves Hacker-Scout | -6/Lower Caves Scavenger-Scout | -5/Factory Hacker-Scout | -4/Factory Commander-Scout | -4/Extension Commander-Scout | -4/Cetus Commander-Scout | -4/Archives Commander-Scout | -4/Hub_04(d) Hacker-Scout | -3/Research Hacker-Mutant | -3/Quarantine Scavenger-Mutant | -2/Research Scavenger-Mutant | -2/Testing Resources | -11 -10 -10 -9 -9 -8 -8 -8 -7 -7 -7 -6 -6 -6 -5 -4 -4 -4 -4 -4 -3 -3 -2 -2 ----------- Run | Yrd Mat Min Mat Min Mat Gar Mat Fac Was Fac Fac Low Low Fac Fac Ext Cet Arc Hub Res Qua Res Tes Matter Collected 2212 | 376 . 13 . 167 100 233 96 108 248 20 55 65 . 20 29 348 40 10 . . . 139 145 Remotely . | . . . . . . . . . . . . . . . . . . . . . . . . Salvage Created 2855 | 302 . 47 60 134 232 524 96 260 . 20 58 . . 263 29 367 75 64 69 . 116 139 . Parts 182 | 21 . 13 2 6 15 26 10 30 . 2 8 . . 10 3 10 1 6 5 . 4 10 . Haulers Intercepted 5 | . . . . . 2 . . 1 . . . . . 1 . . . . . . . . 1 Recyclers Shooed 2 | . . 1 . . . . . . . . . . . . . 1 . . . . . . . Parts Field Recycled . | . . . . . . . . . . . . . . . . . . . . . . . . Retrieved Matter . | . . . . . . . . . . . . . . . . . . . . . . . . Parts Self-Destructed 3 | . . . . . . . . . . . . 3 . . . . . . . . . . . Prevented . | . . . . . . . . . . . . . . . . . . . . . . . . Kills | -11 -10 -10 -9 -9 -8 -8 -8 -7 -7 -7 -6 -6 -6 -5 -4 -4 -4 -4 -4 -3 -3 -2 -2 ------- Run | Yrd Mat Min Mat Min Mat Gar Mat Fac Was Fac Fac Low Low Fac Fac Ext Cet Arc Hub Res Qua Res Tes Combat Hostiles Destroyed 47 | . . 6 1 3 2 19 1 5 . . . . . . . 1 . . . . . 4 5 Melee 9 | . . . . . . 2 . 5 . . . . . . . . . . . . . 2 . Guns 6 | . . 1 . . . 2 1 . . . . . . . . . . . . . . 2 . Cannons 4 | . . . 1 2 1 . . . . . . . . . . . . . . . . . . AOE 21 | . . 5 . . . 11 . . . . . . . . . . . . . . . . 5 Classes Destroyed 14 | 3 . 2 1 1 1 . 1 2 . . 1 . . . . . . . . . . . 2 Worker 11 | 1 . . . . . . . 2 . . . . . 1 . . . . 1 . . . 6 Builder 7 | . . 1 . . 1 . . . . . . . . . 1 1 . . . . . . 3 Tunneler 9 | 9 . . . . . . . . . . . . . . . . . . . . . . . Hauler 5 | . . . . . 2 . . 1 . . . . . 1 . . . . . . . . 1 Recycler 7 | 1 . . . . . . . 1 . . . . . 1 . 2 . . . . 1 . 1 Operator 4 | . . . . . . . . . . . 1 . . . . 1 . 2 . . . . . Watcher 4 | . . . . . . . 1 . . 1 1 . . . . . . . 1 . . . . Swarmer 16 | . . 6 . . . 6 . . . . . . . . . . . . . . . 4 . Cutter 4 | . . . . . . . . 4 . . . . . . . . . . . . . . . Grunt 13 | . . . . 3 1 9 . . . . . . . . . . . . . . . . . Researcher 1 | . . . . . . . . . . . . . . . . . . . . . . . 1 Sentry 8 | . . . 1 . 1 4 1 . . . . . . . . 1 . . . . . . . Specialist 2 | . . . . . . . . . . . . . . . . . . . . . . . 2 Programmer 4 | . . . . . . . . 1 . . . . . . . . . . . . . . 3 Thug 2 | . . . . . . 1 . . . . . . . . . . 1 . . . . . . Best Kill Streak 17 | 5 . 6 1 3 2 9 1 2 . 1 1 . . 2 1 2 . 2 1 . 1 2 17 Combat Bots Only 9 | . . 6 1 3 2 9 1 2 . . . . . . . 1 . . . . . 2 5 Max Kills in Single Turn 17 | 1 . 3 1 1 1 4 1 1 . 1 1 . . 1 1 1 1 1 1 . 1 1 17 Gunslinging 1 | . . . . . . 1 . . . . . . . . . . . . . . . . . Exploded 5 | . . 3 . . . 4 . . . . . . . . . . . . . . . . 5 Melee 1 | . . . . . . 1 . 1 . . . . . . . . . . . . . 1 . Uniques/NPCs Destroyed . | . . . . . . . . . . . . . . . . . . . . . . . . Combat | -11 -10 -10 -9 -9 -8 -8 -8 -7 -7 -7 -6 -6 -6 -5 -4 -4 -4 -4 -4 -3 -3 -2 -2 -------- Run | Yrd Mat Min Mat Min Mat Gar Mat Fac Was Fac Fac Low Low Fac Fac Ext Cet Arc Hub Res Qua Res Tes Hostile Shots Fired 933 | . . 10 13 14 28 78 17 83 . 7 32 4 . . . 22 2 2 50 46 350 65 110 Missed 450 | . . 4 7 5 4 27 2 40 . . 20 3 . . . 6 1 . 31 27 196 24 53 Damage Taken 9446 | . . 60 82 115 309 686 255 644 . 171 105 18 . . . 227 24 53 334 398 2717 973 2275 Core 3432 | . . . . 23 43 104 70 211 . 55 27 . . . . 89 . . 143 95 1080 358 1134 Absorbed by Shields 54 | . . . . . . . . . . . . . . . . 54 . . . . . . . Redirected to Core 22 | . . . . . . . . . . . . . . . . . . . . . 22 . . Redirected to Shielding 60 | . . . . . . . . . . . . . . . . . . . . . . . 60 Regen/Repaired (Parts) 97 | . . . . . . . . . 16 11 . . . . . . . . . . . 68 2 Core Remaining (%) 77 | 100 . 100 . 94 . . 60 . . 62 . . 96 100 . . . . 79 . 9 . . Volleys Fired 128 | 29 . 7 6 8 16 11 9 . . . . . . . . 34 . . 1 . 1 5 1 Largest 2 | 2 . 2 1 1 1 2 2 . . . . . . . . 1 . . 1 . 1 1 1 Hottest 113 | 40 . 40 56 56 56 40 40 . . . . . . . . 88 . . 57 . 113 30 . Shots Fired 177 | 58 . 12 6 8 16 16 19 . . . . . . . . 34 . . 1 . 1 5 1 Gun 101 | 58 . 10 . . . 9 19 . . . . . . . . . . . . . . 5 . Cannon 65 | . . . 6 8 16 . . . . . . . . . . 33 . . 1 . 1 . . Launcher 11 | . . 2 . . . 7 . . . . . . . . . 1 . . . . . . 1 Special . | . . . . . . . . . . . . . . . . . . . . . . . . Kinetic 128 | 58 . 10 . . . 9 19 . . . . . . . . 26 . . 1 . . 5 . Thermal 2 | . . . . . . . . . . . . . . . . . . . . . 1 . 1 Explosive 10 | . . 2 . . . 7 . . . . . . . . . 1 . . . . . . . Electromagnetic 37 | . . . 6 8 16 . . . . . . . . . . 7 . . . . . . . Robot Hit Streak 23 | 7 . 2 5 11 3 8 20 . . . . . . . . 23 . . . . . 2 2 Robot Miss Streak 4 | 4 . 2 1 1 1 2 . . . . . . . . . 2 . . . . . 2 . Penetration Max . | . . . . . . . . . . . . . . . . . . . . . . . . Secondary Targets 1 | . . . . . . 1 . . . . . . . . . . . . . . . . . Max Gunslinging Chain 1 | . . . . . . 1 . . . . . . . . . . . . . . . . . Shots Hit Robots 219 | 33 . 5 5 7 12 40 20 18 . 3 3 . . 9 1 50 2 2 . 1 1 6 1 Core Hits 102 | 14 . 8 2 3 6 26 4 7 . 1 2 . . 4 1 7 2 2 3 . 1 5 4 Critical Kills 2 | . . . . . . 2 . . . . . . . . . . . . . . . . . Critical Parts Destroyed 4 | . . . . . . 4 . . . . . . . . . . . . . . . . . Critical Strikes 11 | . . . . . 1 6 1 1 . . . . . 1 . . . . . . . 1 . Corrupt 1 | . . . . . 1 . . . . . . . . . . . . . . . . . . Smash 6 | . . . . . . 6 . . . . . . . . . . . . . . . . . Sever 4 | . . . . . . . 1 1 . . . . . 1 . . . . . . . 1 . Melee Attacks 311 | . . . . . 7 42 5 51 . 29 16 5 . 26 14 65 2 2 5 25 10 7 . Impact 49 | . . . . . 7 42 . . . . . . . . . . . . . . . . . Slashing 225 | . . . . . . . 5 50 . 29 16 5 . 26 14 29 2 2 5 25 10 7 . Piercing . | . . . . . . . . . . . . . . . . . . . . . . . . Sneak Attacks 58 | . . . . . . 2 . 5 . . . . . 3 1 41 2 2 . 1 1 . . Combat Hostiles 1 | . . . . . . . . 1 . . . . . . . . . . . . . . . Follow-up Attacks . | . . . . . . . . . . . . . . . . . . . . . . . . Damage Inflicted 22850 | 363 . 335 94 161 311 2056 213 988 . 115 127 . . 446 58 667 128 171 419 57 76 341 15724 Guns 689 | 363 . 63 . . . 35 139 . . . . . . . . . . . . . . 89 . Cannons 735 | . . . 94 161 286 . . . . . . . . . . 194 . . . . . . . Explosions 17658 | . . 272 . . . 1242 . . . . . . . . . 1 . . 419 . . . 15724 Melee 3761 | . . . . . 24 779 74 988 . 115 127 . . 446 58 472 128 171 . 57 75 247 . Ramming 7 | . . . . . 1 . . . . . . . . . . . . . . . 1 5 . Kinetic 689 | 363 . 63 . . . 35 139 . . . . . . . . . . . . . . 89 . Thermal 15771 | . . 47 . . . . . . . . . . . . . . . . . . . . 15724 Explosive 1468 | . . 225 . . . 1242 . . . . . . . . . 1 . . . . . . . Electromagnetic 1154 | . . . 94 161 286 . . . . . . . . . . 194 . . 419 . . . . Impact 803 | . . . . . 24 779 . . . . . . . . . . . . . . . . . Slashing 2958 | . . . . . . . 74 988 . 115 127 . . 446 58 472 128 171 . 57 75 247 . Piercing . | . . . . . . . . . . . . . . . . . . . . . . . . Highest Corruption 19 | . . 11 . . . 11 11 1 1 2 . . . . . . . . 1 . 10 . 19 Average Corruption 4 | . . 10 . . . 10 11 1 1 1 . . . . . . . . 1 . 4 . 11 Corruption Purged 2 | . . . . . . . . . . 2 . . . . . . . . . . . . . Corruption Blocked . | . . . . . . . . . . . . . . . . . . . . . . . . Effects 47 | . . . . . . 19 10 10 . 2 . . . . . . . . . . 2 . 4 Message Errors 8 | . . . . . . 4 . 2 . 1 . . . . . . . . . . . . 1 Matter Fused 16 | . . . . . . 5 7 4 . . . . . . . . . . . . . . . Heat Flow Errors 5 | . . . . . . 2 . 1 . 1 . . . . . . . . . . 1 . . Energy Discharges 7 | . . . . . . 2 2 1 . . . . . . . . . . . . . . 2 Data Loss (minor) 6 | . . . . . . 4 . 1 . . . . . . . . . . . . . . 1 Misfires 3 | . . . . . . 2 1 . . . . . . . . . . . . . . . . Alerts 2 | . . . . . . . . 1 . . . . . . . . . . . . 1 . . Overload Shots . | . . . . . . . . . . . . . . . . . . . . . . . . Overflow Damage 3269 | . . 3 . . 16 190 . 191 . 6 6 . . 78 . 80 . . . 2 . . 2697 Projectiles 16 | . . . . . 16 . . . . . . . . . . . . . . . . . . Explosions 2745 | . . 3 . . . 45 . . . . . . . . . . . . . . . . 2697 Melee 508 | . . . . . . 145 . 191 . 6 6 . . 78 . 80 . . . 2 . . . Knockbacks 1 | . . . . . . 1 . . . . . . . . . . . . . . . . . Impact 1 | . . . . . . 1 . . . . . . . . . . . . . . . . . Kinetic . | . . . . . . . . . . . . . . . . . . . . . . . . Secondary . | . . . . . . . . . . . . . . . . . . . . . . . . Self-Inflicted Damage 898 | . . 13 . . . 23 . . . . . . . . . . . . . . . 2 860 Shots 3 | . . 1 . . . 1 . . . . . . . . . . . . . . . . 1 Rammed 5 | . . . . . 1 . . . . . . . . . . . . . . . 1 3 . Targets Rammed 5 | . . . . . 1 . . . . . . . . . . . . . . . 1 3 . Kicked . | . . . . . . . . . . . . . . . . . . . . . . . . Crushed . | . . . . . . . . . . . . . . . . . . . . . . . . Highest Temperature 254 | . . 7 70 175 117 179 4 107 . 254 3 . . 50 . 18 . . . 23 128 . . Average Temperature 47 | . . 4 33 93 44 52 4 66 . 102 2 . . 11 . 13 . . . 13 90 . . Received Heat Transfer 1327 | . . . 18 63 45 243 54 42 . 63 39 . . . . 63 9 9 27 121 450 27 54 Effects 1 | . . . . . . . . . . 1 . . . . . . . . . . . . . Interference 1 | . . . . . . . . . . 1 . . . . . . . . . . . . . Siege Activations . | . . . . . . . . . . . . . . . . . . . . . . . . Robots Corrupted 8 | . . . . 1 1 4 . . . . . . . . . 1 . . 1 . . . . Combat Hostiles 7 | . . . . 1 1 4 . . . . . . . . . 1 . . . . . . . Parts Fried 11 | . . . 2 . 2 2 . . . . . . . . . 2 . . 3 . . . . Impact Corruptions 8 | . . . . . . 8 . . . . . . . . . . . . . . . . . Robots Melted . | . . . . . . . . . . . . . . . . . . . . . . . . Combat Hostiles . | . . . . . . . . . . . . . . . . . . . . . . . . Parts Melted 2 | . . . 2 . . . . . . . . . . . . . . . . . . . . Heat Transferred 50 | . . 50 . . . . . . . . . . . . . . . . . . . . . Parts Sabotaged 3 | . . . . . . . . . . . . . . . . . . . . . . . 3 Parts Stolen . | . . . . . . . . . . . . . . . . . . . . . . . . Parts Stripped . | . . . . . . . . . . . . . . . . . . . . . . . . Power Chain Reactions . | . . . . . . . . . . . . . . . . . . . . . . . . Alert | -11 -10 -10 -9 -9 -8 -8 -8 -7 -7 -7 -6 -6 -6 -5 -4 -4 -4 -4 -4 -3 -3 -2 -2 ------- Run | Yrd Mat Min Mat Min Mat Gar Mat Fac Was Fac Fac Low Low Fac Fac Ext Cet Arc Hub Res Qua Res Tes Peak Influence 1242 | 55 65 216 158 131 137 725 525 647 259 345 267 . . 57 71 911 455 338 876 594 89 314 1242 Initial 454 | . 35 25 83 61 50 9 352 238 219 168 102 . . . 27 34 285 102 118 454 19 15 176 Average 272 | 27 41 209 104 128 62 430 418 365 234 218 158 . . 33 43 422 431 286 323 402 43 182 408 Maximum Alert Level 4 | . . 1 . . . 3 2 2 1 1 1 . . . . 3 2 1 3 2 . 1 4 Low Security (%) 37 | 100 100 5 100 100 100 17 . . . 19 86 . . 100 100 23 . 11 46 1 100 40 28 Level 1 35 | . . 94 . . . 21 50 65 100 80 13 . . . . 19 12 88 4 54 . 60 52 Level 2 22 | . . . . . . 51 49 34 . . . . . . . 30 87 . 45 43 . . . Level 3 3 | . . . . . . 8 . . . . . . . . . 25 . . 3 . . . . Level 4 . | . . . . . . . . . . . . . . . . . . . . . . . 19 Level 5 . | . . . . . . . . . . . . . . . . . . . . . . . . High Security . | . . . . . . . . . . . . . . . . . . . . . . . . Max Security . | . . . . . . . . . . . . . . . . . . . . . . . . Squads Dispatched 39 | . 1 . 2 . 2 . 4 8 . 6 . . . 2 . 3 . . 6 3 . . 2 Investigation 12 | . . . . . 1 . 2 2 . 4 . . . 1 . . . . 1 1 . . . Extermination 5 | . . . . . . . . 2 . 2 . . . . . . . . . 1 . . . Reinforcement 19 | . 1 . 2 . 1 . 2 4 . . . . . 1 . 2 . . 4 1 . . 1 Assault 3 | . . . . . . . . . . . . . . . . 1 . . 1 . . . 1 Garrison . | . . . . . . . . . . . . . . . . . . . . . . . . Intercept . | . . . . . . . . . . . . . . . . . . . . . . . . Searches Triggered 1 | . . . . . . . . . . . . . . . . . . . . 1 . . . Construction Impeded 1 | . . . . . . . . . . . . . . . . 1 . . . . . . . Haulers Reinforced 1 | . . . . . . . . . . . . . . 1 . . . . . . . . . Active Scanning Responses . | . . . . . . . . . . . . . . . . . . . . . . . . Cargo Convoy Interrupts . | . . . . . . . . . . . . . . . . . . . . . . . . Stealth | -11 -10 -10 -9 -9 -8 -8 -8 -7 -7 -7 -6 -6 -6 -5 -4 -4 -4 -4 -4 -3 -3 -2 -2 --------- Run | Yrd Mat Min Mat Min Mat Gar Mat Fac Was Fac Fac Low Low Fac Fac Ext Cet Arc Hub Res Qua Res Tes Distress Signals 17 | . 1 . 1 . . . . 1 . . 1 . . . . 4 1 . 3 2 1 . 2 Communications Jammed . | . . . . . . . . . . . . . . . . . . . . . . . . Distress Signals . | . . . . . . . . . . . . . . . . . . . . . . . . Times Spotted 258 | . 3 6 5 3 5 23 6 44 5 10 9 6 . . 1 32 5 3 15 17 23 18 19 Peak Tracking Total 18 | . 4 6 4 3 2 6 3 9 1 4 6 4 . . 1 6 5 2 15 12 18 6 10 Tactical Retreats 48 | . . . 1 . . 2 2 12 . 4 2 2 . . . 6 . . 3 6 2 4 2 Traps | -11 -10 -10 -9 -9 -8 -8 -8 -7 -7 -7 -6 -6 -6 -5 -4 -4 -4 -4 -4 -3 -3 -2 -2 ------- Run | Yrd Mat Min Mat Min Mat Gar Mat Fac Was Fac Fac Low Low Fac Fac Ext Cet Arc Hub Res Qua Res Tes Traps Triggered 12 | . . 1 . . . . . 2 . 1 . . . . . 5 . . 2 . 1 . . Indirectly . | . . . . . . . . . . . . . . . . . . . . . . . . Trap Hack Attempts 19 | . . . . . . . . 15 . . 4 . . . . . . . . . . . . Triggered . | . . . . . . . . . . . . . . . . . . . . . . . . Disarmed . | . . . . . . . . . . . . . . . . . . . . . . . . Reprogrammed 2 | . . . . . . . . 1 . . 1 . . . . . . . . . . . . Reused . | . . . . . . . . . . . . . . . . . . . . . . . . Traps Extracted 1 | . . . . . . . . 1 . . . . . . . . . . . . . . . Installed 1 | . . . . . . . . 1 . . . . . . . . . . . . . . . Triggered . | . . . . . . . . . . . . . . . . . . . . . . . . Most Traps Carried 1 | . . . . . . . . 1 . . . . . . . . . . . . . . . Objects Rigged 2 | . . . . . . . . . . . . . . . . . . . 2 . . . . Exploded 1 | . . . . . . . . . . . . . . . . . . . 1 . . . . Machines | -11 -10 -10 -9 -9 -8 -8 -8 -7 -7 -7 -6 -6 -6 -5 -4 -4 -4 -4 -4 -3 -3 -2 -2 ---------- Run | Yrd Mat Min Mat Min Mat Gar Mat Fac Was Fac Fac Low Low Fac Fac Ext Cet Arc Hub Res Qua Res Tes Machines Disabled 50 | . . 1 . . 1 3 1 3 . . . . . . . 2 . 4 17 . 4 . 14 Max in Single Turn 14 | . . 1 . . 1 1 1 . . . . . . . . 1 . . 5 . 1 . 14 Garrison Access 1 | . . . . . . . . . . . . . . . . . . . 1 . . . . Garrison Relay 3 | . . . . . . 3 . . . . . . . . . . . . . . . . . Network Hub 2 | . . . . . . . . . . . . . . . . . . . 2 . . . . Machines Repaired . | . . . . . . . . . . . . . . . . . . . . . . . . Machines Dismantled . | . . . . . . . . . . . . . . . . . . . . . . . . Machines Sabotaged . | . . . . . . . . . . . . . . . . . . . . . . . . Overloaded Fab Kills . | . . . . . . . . . . . . . . . . . . . . . . . . Hacking | -11 -10 -10 -9 -9 -8 -8 -8 -7 -7 -7 -6 -6 -6 -5 -4 -4 -4 -4 -4 -3 -3 -2 -2 --------- Run | Yrd Mat Min Mat Min Mat Gar Mat Fac Was Fac Fac Low Low Fac Fac Ext Cet Arc Hub Res Qua Res Tes Machines Accessed 64 | . 1 1 . . 2 2 3 4 . 11 4 1 . 2 2 9 1 . 8 5 4 2 2 Terminals 46 | . 1 . . . . 2 2 1 . 4 3 . . 1 2 9 1 . 8 4 4 2 2 Fabricators 7 | . . . . . . . . 2 . 3 . . . 1 . . . . . 1 . . . Repair Stations 4 | . . . . . . . 1 . . 3 . . . . . . . . . . . . . Recycling Units . | . . . . . . . . . . . . . . . . . . . . . . . . Scanalyzers 1 | . . . . . 1 . . . . . . . . . . . . . . . . . . Garrison Access 4 | . . . . . 1 . . 1 . 1 1 . . . . . . . . . . . . Total Hacks 181 | . 3 1 . . 12 4 8 10 . 28 9 1 . 5 5 20 1 . 20 33 11 7 3 Successful 88 | . . 1 . . 7 2 3 5 . 10 2 1 . 3 3 11 1 . 9 20 4 3 3 Failed 93 | . 3 . . . 5 2 5 5 . 18 7 . . 2 2 9 . . 11 13 7 4 . Catastrophic 20 | . . . . . . . . 1 . 3 1 . . . 1 3 . . 2 3 3 3 . Database Lockouts . | . . . . . . . . . . . . . . . . . . . . . . . . Manual 80 | . 3 . . . . . 1 2 . 1 5 . . . 4 10 1 . 19 23 6 4 1 Terminals 127 | . 3 . . . . 4 4 2 . 8 6 . . 2 5 20 1 . 20 31 11 7 3 Fabricators 22 | . . . . . . . . 7 . 10 . . . 3 . . . . . 2 . . . Repair Stations 10 | . . . . . . . 4 . . 6 . . . . . . . . . . . . . Recycling Units . | . . . . . . . . . . . . . . . . . . . . . . . . Scanalyzers 8 | . . . . . 8 . . . . . . . . . . . . . . . . . . Garrison Access 12 | . . . . . 4 . . 1 . 4 3 . . . . . . . . . . . . Terminal Hacks 48 | . . 1 . . . 2 2 . . 1 . 1 . 1 2 10 1 . 3 16 4 2 2 Record 1 | . . . . . . . . . . . . . . . . . . . . . 1 . . Part Schematic 1 | . . . . . . . . . . . . . . . . . . . . 1 . . . Open Door 12 | . . 1 . . . 1 . . . . . 1 . . 1 6 1 . . . 1 . . Level Access Points 4 | . . . . . . . 1 . . . . . . 1 . . . . 1 . . 1 . Branch Access Points 4 | . . . . . . . . . . . . . . . 1 . . . 1 1 . 1 . Emergency Access Points 1 | . . . . . . . . . . . . . . . . . . . . 1 . . . Machine Index 1 | . . . . . . . . . . . . . . . . . . . . 1 . . . Terminal Index 1 | . . . . . . . . . . . . . . . . . . . 1 . . . . Alert Level 3 | . . . . . . . . . . . . . . . . . . . . 2 . . 1 Unreport Threat 10 | . . . . . . . . . . . . . . . . 4 . . . 4 2 . . Locate Traps 2 | . . . . . . . . . . . . . . . . . . . . 2 . . . Maintenance Status 1 | . . . . . . . . . . 1 . . . . . . . . . . . . . Recall Investigation 1 | . . . . . . . . . . . . . . . . . . . . 1 . . . Recall Reinforcements 1 | . . . . . . . . . . . . . . . . . . . . . . . 1 Zone Layout 4 | . . . . . . . 1 . . . . . . . . . . . . 3 . . . Garrison Registry 1 | . . . . . . 1 . . . . . . . . . . . . . . . . . Fabricator Hacks 13 | . . . . . . . . 4 . 5 . . . 2 . . . . . 2 . . . Load Schematic 7 | . . . . . . . . 2 . 3 . . . 1 . . . . . 1 . . . Build 6 | . . . . . . . . 2 . 2 . . . 1 . . . . . 1 . . . Repair Station Hacks 4 | . . . . . . . 1 . . 3 . . . . . . . . . . . . . Scan Component 3 | . . . . . . . 1 . . 2 . . . . . . . . . . . . . Repair 1 | . . . . . . . . . . 1 . . . . . . . . . . . . . Recycling Unit Hacks . | . . . . . . . . . . . . . . . . . . . . . . . . Scanalyzer 6 | . . . . . 6 . . . . . . . . . . . . . . . . . . Insert Component 2 | . . . . . 2 . . . . . . . . . . . . . . . . . . Analyze 4 | . . . . . 4 . . . . . . . . . . . . . . . . . . Garrison Access Hacks 1 | . . . . . 1 . . . . . . . . . . . . . . . . . . Unlock Access 1 | . . . . . 1 . . . . . . . . . . . . . . . . . . Unauthorized Hacks 16 | . . . . . . . . 1 . 1 2 . . . 1 1 . . 6 2 . 1 1 Terminals 16 | . . . . . . . . 1 . 1 2 . . . 1 1 . . 6 2 . 1 1 Assimilate 2 | . . . . . . . . . . . . . . . . 1 . . . 1 . . . Botnet 9 | . . . . . . . . 1 . 1 2 . . . 1 . . . 1 1 . 1 1 Detonate 5 | . . . . . . . . . . . . . . . . . . . 5 . . . . Fabricators . | . . . . . . . . . . . . . . . . . . . . . . . . Repair Stations . | . . . . . . . . . . . . . . . . . . . . . . . . Recycling Units . | . . . . . . . . . . . . . . . . . . . . . . . . Scanalyzers . | . . . . . . . . . . . . . . . . . . . . . . . . Garrison Access . | . . . . . . . . . . . . . . . . . . . . . . . . Data Cores Recovered 1 | . . . . . . . . . . . 1 . . . . . . . . . . . . Used . | . . . . . . . . . . . . . . . . . . . . . . . . Hacking Detections 50 | . 1 . . . 1 2 3 4 . 11 4 . . 2 1 6 . . 6 5 2 2 . Full Trace Events 12 | . . . . . 1 . 2 2 . 4 . . . 1 . . . . 1 1 . . . Feedback Events 1 | . . . . . . . . . . 1 . . . . . . . . . . . . . Corruption 1 | . . . . . . . . . . 1 . . . . . . . . . . . . . Feedback Blocked . | . . . . . . . . . . . . . . . . . . . . . . . . Robot Schematics Acquired . | . . . . . . . . . . . . . . . . . . . . . . . . Robots Built . | . . . . . . . . . . . . . . . . . . . . . . . . Authchips . | . . . . . . . . . . . . . . . . . . . . . . . . Time . | . . . . . . . . . . . . . . . . . . . . . . . . Total Robot Build Rating . | . . . . . . . . . . . . . . . . . . . . . . . . Part Schematics Acquired 3 | . . . . . 2 . . . . . . . . . . . . . . 1 . . . Parts Built 5 | . . . . . . . . 2 . 2 . . . 1 . . . . . . . . . Authchips . | . . . . . . . . . . . . . . . . . . . . . . . . Time 654 | . . . . . . . . 232 . 306 . . . 58 . . . . . 58 . . . Total Part Build Rating 25 | . . . . . . . . 6 . 16 . . . 3 . . . . . . . . . Parts Repaired 1 | . . . . . . . . . . 1 . . . . . . . . . . . . . Time 136 | . . . . . . . . . . 136 . . . . . . . . . . . . . Parts Recycled . | . . . . . . . . . . . . . . . . . . . . . . . . Recycled Matter . | . . . . . . . . . . . . . . . . . . . . . . . . Retrieved Matter . | . . . . . . . . . . . . . . . . . . . . . . . . Retrieved Components . | . . . . . . . . . . . . . . . . . . . . . . . . Parts Scanalyzed 2 | . . . . . 2 . . . . . . . . . . . . . . . . . . Part Schematics Acquired 2 | . . . . . 2 . . . . . . . . . . . . . . . . . . Parts Damaged 1 | . . . . . 1 . . . . . . . . . . . . . . . . . . Bothacking | -11 -10 -10 -9 -9 -8 -8 -8 -7 -7 -7 -6 -6 -6 -5 -4 -4 -4 -4 -4 -3 -3 -2 -2 ------------ Run | Yrd Mat Min Mat Min Mat Gar Mat Fac Was Fac Fac Low Low Fac Fac Ext Cet Arc Hub Res Qua Res Tes Used RIF Installer . | . . . . . . . . . . . . . . . . . . . . . . . . Robots Hacked . | . . . . . . . . . . . . . . . . . . . . . . . . Non-combat . | . . . . . . . . . . . . . . . . . . . . . . . . Combat . | . . . . . . . . . . . . . . . . . . . . . . . . Robot Hacks Applied . | . . . . . . . . . . . . . . . . . . . . . . . . Relay Couplers Released 14 | . . . . . . 12 . . . . . . . . . . . . 2 . . . . Machine Destruction 14 | . . . . . . 12 . . . . . . . . . . . . 2 . . . . Fabnet Peak Effective % . | . . . . . . . . . . . . . . . . . . . . . . . . Robots Rewired 25 | . . . . . . . . 1 . . . . . . . 24 . . . . . . . Allies Hacked 2 | . . . . . . . . . . . . . . . . 2 . . . . . . . Hacks Repelled . | . . . . . . . . . . . . . . . . . . . . . . . . Allies | -11 -10 -10 -9 -9 -8 -8 -8 -7 -7 -7 -6 -6 -6 -5 -4 -4 -4 -4 -4 -3 -3 -2 -2 -------- Run | Yrd Mat Min Mat Min Mat Gar Mat Fac Was Fac Fac Low Low Fac Fac Ext Cet Arc Hub Res Qua Res Tes Total Allies 58 | . . . . . . 1 . 1 18 . . . . . . 33 5 . . . . . . Largest Group 25 | . . . . . . 1 . 1 18 . . . . . . 22 25 23 20 . . . . Highest-Rated Group 1472 | . . . . . . 31 . 21 444 . . . . . . 1093 1472 1398 1150 . . . . Highest-Rated Ally 159 | . . . . . . 31 . 21 35 . . . . . . 159 159 159 96 . . . . Total Orders . | . . . . . . . . . . . . . . . . . . . . . . . . Ally Attacks 433 | . . . . . . 17 . 9 120 . . . . . . 137 35 41 74 . . . . Total Damage 14406 | . . . . . . 168 . 279 4625 . . . . . . 4502 846 911 3075 . . . . Kills 62 | . . . . . . 3 . 1 12 . . . . . . 27 6 4 9 . . . . Allies Corrupted 4 | . . . . . . . . . . . . . . . . 1 . . 3 . . . . Allies Melted 1 | . . . . . . . . . . . . 1 . . . . . . . . . . . Intel | -11 -10 -10 -9 -9 -8 -8 -8 -7 -7 -7 -6 -6 -6 -5 -4 -4 -4 -4 -4 -3 -3 -2 -2 ------- Run | Yrd Mat Min Mat Min Mat Gar Mat Fac Was Fac Fac Low Low Fac Fac Ext Cet Arc Hub Res Qua Res Tes Robot Analysis Total . | . . . . . . . . . . . . . . . . . . . . . . . . Derelict Logs Recovered 2 | . . . . 1 . . . . . . . 1 . . . . . . . . . . . Drone Launches . | . . . . . . . . . . . . . . . . . . . . . . . . Drone Recoveries . | . . . . . . . . . . . . . . . . . . . . . . . . Exploration | -11 -10 -10 -9 -9 -8 -8 -8 -7 -7 -7 -6 -6 -6 -5 -4 -4 -4 -4 -4 -3 -3 -2 -2 ------------- Run | Yrd Mat Min Mat Min Mat Gar Mat Fac Was Fac Fac Low Low Fac Fac Ext Cet Arc Hub Res Qua Res Tes Turns Passed 8999 | 275 120 133 178 268 538 735 245 1170 124 759 243 809 16 280 236 751 430 113 121 647 278 270 260 Spaces Moved 9839 | 89 93 50 144 157 296 352 298 1471 314 1093 549 461 60 497 370 681 244 147 280 1032 512 294 355 Core 219 | 19 . 4 . . 1 . . . . . . . . . . . . . . . 7 104 84 Treads 883 | . . . 47 157 295 352 32 . . . . . . . . . . . . . . . . Legs 209 | 70 93 46 . . . . . . . . . . . . . . . . . . . . . Wheels . | . . . . . . . . . . . . . . . . . . . . . . . . Hover 1207 | . . . . . . . 266 941 . . . . . . . . . . . . . . . Flight 7321 | . . . 97 . . . . 530 314 1093 549 461 60 497 370 681 244 147 280 1032 505 190 271 Fastest Speed 20 | 50 120 120 74 160 156 152 48 26 26 26 26 26 26 20 20 20 24 24 24 28 34 25 40 Average Speed 46 | 105 120 198 102 160 157 155 59 41 26 26 26 26 26 22 20 24 24 24 24 28 38 68 65 Slowest Speed 450 | 120 190 450 240 160 400 156 160 240 26 26 26 26 26 26 20 100 24 24 102 34 50 200 80 Overloaded Moves . | . . . . . . . . . . . . . . . . . . . . . . . . Propulsion Burnouts . | . . . . . . . . . . . . . . . . . . . . . . . . Robots Hopped 66 | . . . 1 . . . . 4 . 2 1 . . 1 11 5 . . 2 1 14 10 14 Cave-ins Triggered . | . . . . . . . . . . . . . . . . . . . . . . . . Exploration Rate (%) 36 | 4 22 14 20 48 16 48 30 38 97 22 17 58 15 22 10 66 71 82 34 24 45 13 58 Regions Visited 23 Branch Regions 10 Pre-discovered Areas 1 | . . . . . . . . . . . . 1 . . . . . . . . . . . Known Exits Taken 15 | . . . . . 1 . 1 . . 1 1 1 1 1 1 1 1 1 1 1 1 1 . Unknown Exits Taken 5 | 1 1 1 1 1 . . . . . . . . . . . . . . . . . . . Scrap Searched 2 | . . . . 1 . . . . . . . 1 . . . . . . . . . . . Spaces Dug 175 | . . 10 . . 5 . 2 24 . 21 11 5 . 14 12 40 . . 5 22 4 . . Terrain Destroyed 929 | . . 19 . . 5 27 2 24 . 21 11 5 . 14 12 42 . . 313 22 4 . 408 Melee 141 | . . . . . 5 . 2 24 . 21 11 5 . 14 12 16 . . 5 22 4 . . Projectile 17 | . . . . . . . . . . . . . . . . 17 . . . . . . . AOE 771 | . . 19 . . . 27 . . . . . . . . . 9 . . 308 . . . 408 Terrain Rammed . | . . . . . . . . . . . . . . . . . . . . . . . . Walls Destroyed . | . . . . . . . . . . . . . . . . . . . . . . . . Machines Disabled . | . . . . . . . . . . . . . . . . . . . . . . . . Actions | -11 -10 -10 -9 -9 -8 -8 -8 -7 -7 -7 -6 -6 -6 -5 -4 -4 -4 -4 -4 -3 -3 -2 -2 --------- Run | Yrd Mat Min Mat Min Mat Gar Mat Fac Was Fac Fac Low Low Fac Fac Ext Cet Arc Hub Res Qua Res Tes Total 13567 | 216 100 76 170 166 339 450 344 1939 356 1522 623 1141 59 627 500 1184 613 220 321 1345 564 325 367 Wait 2835 | 87 . . 1 . 2 33 9 349 36 393 36 672 . 82 118 293 358 71 . 265 20 6 4 Move 9696 | 88 92 49 141 156 296 350 297 1463 313 1088 546 460 59 494 351 670 243 146 275 1029 486 276 328 Hop 55 | . . . 1 . . . . 4 . 2 1 . . 1 7 5 . . 2 1 11 7 13 Pick Up 87 | 6 5 9 1 2 4 3 3 12 3 1 6 1 . 6 5 5 3 . . 6 6 . . Fast Attach 96 | 5 1 1 5 . 4 4 6 9 1 3 4 2 . 5 1 4 1 . . 5 8 17 10 Attach 54 | 1 . 4 5 . . 1 . 11 . 1 4 . . 3 1 3 1 . 1 5 10 1 2 Detach 15 | . . . 3 . 1 . . 2 . 1 . . . . . 2 1 . 1 1 1 1 1 Swap 28 | . 1 3 . . 3 3 4 5 . 1 1 . . 1 . 5 . 1 . . . . . Drop 110 | . 1 3 7 . 5 3 11 16 3 3 5 1 . 9 3 8 4 . . 8 10 2 8 Fire 128 | 29 . 7 6 8 16 11 9 . . . . . . . . 34 . . 1 . 1 5 1 Melee 311 | . . . . . 7 42 5 51 . 29 16 5 . 26 14 65 2 2 5 25 10 7 . Ram 4 | . . . . . . . . . . . . . . . . . . . . . 1 3 . Kick . | . . . . . . . . . . . . . . . . . . . . . . . . Crush 1 | . . . . . 1 . . . . . . . . . . . . . . . . . . Escape Stasis 126 | . . . . . . . . . . . . . . . . 90 . . 36 . . . . Rewire 1 | . . . . . . . . 1 . . . . . . . . . . . . . . . Trap 20 | . . . . . . . . 16 . . 4 . . . . . . . . . . . . Miscellaneous . | . . . . . . . . . . . . . . . . . . . . . . . . Route ------- -11/Scrapyard -10/Materials -10/Mines (discovered 2 exits: [*Mat x2]) -9/Materials -9/Mines -8/Materials -8/Garrison (discovered 3 exits: *Mat x3) -8/Materials (discovered 4 exits: *Fac x3 / [*Sto]) -7/Factory (discovered 2 exits: *Fac x2) -7/Waste -7/Factory -6/Factory -6/Lower Caves -6/Lower Caves -5/Factory (discovered 4 exits: *Fac x4) -4/Factory (discovered 4 exits: Upp x2 / *Ext x2) -4/Extension (discovered 2 exits: *Res / *Cet) -4/Cetus -4/Archives (discovered 3 exits: *Res / *Hub x2) -4/Hub_04(d) (discovered 4 exits: *Res x4) -3/Research (discovered 3 exits: Arm / *Qua x2) -3/Quarantine -2/Research (discovered 5 exits: Acc x3 / *Tes x2) -2/Testing (discovered 1 exit: *Acc) History --------- Turn | Location | Event 8 | -11/Scrapyard | Discovered new exit (range 15) 276 | -11/Scrapyard | Entered Materials 315 | -10/Materials | Build established: Mutant 377 | -10/Materials | Discovered new exit (range 16) 396 | -10/Materials | Entered Mines 398 | -10/Mines | Discovered new exit (range 14) 449 | -10/Mines | Discovered new exit (range 15) 475 | -10/Mines | Met a Derelict who couldn't figure out how to use a Trap Extractor 512 | -10/Mines | System corruption reached 10% 529 | -10/Mines | Entered Materials 529 | -9/Materials | Evolved 2 slots: Propulsion x2 670 | -9/Materials | Discovered new exit (range 14) 707 | -9/Materials | Entered Mines 830 | -9/Mines | Learned Materials terminal intel 862 | -9/Mines | Found a damaged Exp. Sensor Array with a note attached 865 | -9/Mines | Found Prototype Device 961 | -9/Mines | Discovered new exit (range 8) 975 | -9/Mines | Entered Materials 975 | -8/Materials | Evolved 2 slots: Utility x2 976 | -8/Materials | Loaded intel: 12 terminal locations 1322 | -8/Materials | Identified Exp. Sensor Array 1513 | -8/Materials | Identified exit to Garrison 1513 | -8/Materials | Entered Garrison 1517 | -8/Garrison | Triggered checkpoint 1551 | -8/Garrison | Triggered checkpoint 1574 | -8/Garrison | Garrison Relay disabled 1635 | -8/Garrison | Triggered checkpoint 1686 | -8/Garrison | Destroyed 9 combat bots 1771 | -8/Garrison | System corruption reached 10% 1797 | -8/Garrison | Lost 4 parts (1p2n1w) 1848 | -8/Garrison | Rescued a captive Derelict 1873 | -8/Garrison | Garrison Relay disabled 1885 | -8/Garrison | Discovered new exit (range 73) 1885 | -8/Garrison | Discovered new exit (range 79) 1885 | -8/Garrison | Discovered new exit (range 25) 1945 | -8/Garrison | Attempted to access garrison exit controls, blocked by remote lockdown 2025 | -8/Garrison | Triggered checkpoint 2059 | -8/Garrison | Triggered checkpoint 2183 | -8/Garrison | Garrison Relay disabled 2248 | -8/Garrison | Entered Materials 2323 | -8/Materials | Build established: Scavenger-Mutant 2371 | -8/Materials | Discovered new exit (range 10) 2424 | -8/Materials | Identified exit to Factory 2493 | -8/Materials | Entered Factory 2493 | -7/Factory | Evolved 2 slots: Utility x2 2638 | -7/Factory | Build established: Mutant 2720 | -7/Factory | Discovered new exit (range 5) 2721 | -7/Factory | Identified exit to Factory 2740 | -7/Factory | Discovered exit to Factory (range 12) 2983 | -7/Factory | Fabricated Imp. VTOL Module? 3056 | -7/Factory | Build established: Scout 3256 | -7/Factory | Fabricated Imp. VTOL Module (x1) 3663 | -7/Factory | Manually triggered Chute Trap 3663 | -7/Factory | Sucked down chute 3663 | -7/Factory | Entered Waste 3666 | -7/Waste | Spotted C-40 Crusher 3673 | -7/Waste | Warlord forces began an assault 3688 | -7/Waste | Spotted C-40 Crusher 3697 | -7/Waste | Allies destroyed C-40 Crusher 3705 | -7/Waste | Spotted C-40 Crusher 3716 | -7/Waste | Allies destroyed C-40 Crusher 3723 | -7/Waste | Allies destroyed C-40 Crusher 3730 | -7/Waste | Spotted C-40 Crusher 3734 | -7/Waste | Found Quantum Capacitor 3737 | -7/Waste | Allies destroyed C-40 Crusher 3743 | -7/Waste | Spotted C-40 Crusher 3755 | -7/Waste | Allies destroyed C-40 Crusher 3763 | -7/Waste | Discovered new exit (range 11) 3783 | -7/Waste | Identified exit to Factory 3784 | -7/Waste | Lost 8 allies 3787 | -7/Waste | Entered Factory 3989 | -7/Factory | Repaired Faulty Exp. Sensor Array 4045 | -7/Factory | Discovered exit to Factory (range 8) 4138 | -7/Factory | Fabricated Exp. Sensor Array? 4531 | -7/Factory | Fabricated Exp. Sensor Array? 4546 | -7/Factory | Entered another Factory area 4546 | -6/Factory | Evolved 2 slots: Power x1, Utility x1 4760 | -6/Factory | Discovered new exit (range 15) 4764 | -6/Factory | Identified exit to Lower Caves 4789 | -6/Factory | Entered Lower Caves 4794 | -6/Lower Caves | Learned Factory trap positions 4800 | -6/Lower Caves | Met a Warlord Commander 4801 | -6/Lower Caves | Learned location of Warlord (-5) 4904 | -6/Lower Caves | Warlord Commander delivered Encrypted Comm Array 4986 | -6/Lower Caves | Found Encrypted Comm Array 5035 | -6/Lower Caves | Build established: Hacker-Scout 5471 | -6/Lower Caves | Found Alien Artifact 5471 | -6/Lower Caves | Identified Core Expander 5471 | -6/Lower Caves | Installed Core Expander, added new Utility slot 5484 | -6/Lower Caves | Ambushed by wild Derelicts 5592 | -6/Lower Caves | Discovered new exit (range 6) 5593 | -6/Lower Caves | Identified exit to Lower Caves 5598 | -6/Lower Caves | Entered another Lower Caves area 5610 | -6/Lower Caves | Discovered new exit (range 13) 5613 | -6/Lower Caves | Identified exit to Factory 5614 | -6/Lower Caves | Entered Factory 5614 | -5/Factory | Evolved 2 slots: Propulsion x2 5615 | -5/Factory | Loaded intel: 90 trap records 5680 | -5/Factory | Identified exit to Factory 5796 | -5/Factory | Fabricated Imp. VTOL Module (x1) 5894 | -5/Factory | Entered another Factory area 5894 | -4/Factory | Evolved 2 slots: Utility x2 5914 | -4/Factory | Identified exit to Upper Caves 5914 | -4/Factory | Identified exit to Extension 6130 | -4/Factory | Entered Extension 6137 | -4/Extension | Rescued a captive Derelict 6194 | -4/Extension | Rescued A7 6283 | -4/Extension | Rescued a captive Derelict 6388 | -4/Extension | Lost 6 allies 6611 | -4/Extension | Rescued a captive Derelict 6614 | -4/Extension | Rescued a captive Derelict 6651 | -4/Extension | Rescued a captive Derelict 6693 | -4/Extension | Rescued a captive Derelict 6694 | -4/Extension | Rescued a captive Derelict 6762 | -4/Extension | Discovered new exit (range 10) 6762 | -4/Extension | Discovered new exit (range 6) 6799 | -4/Extension | Identified exit to Cetus 6799 | -4/Extension | Identified exit to Research 6880 | -4/Extension | First assault squad dispatched 6881 | -4/Extension | Entered Cetus 6881 | -4/Cetus | Accompanied by 21 allies (A7) 6884 | -4/Cetus | Spotted Cetus Guard 6884 | -4/Cetus | Spotted Cetus Guard 6886 | -4/Cetus | Acquired a Cetus Manufacturing Module code from A7 6895 | -4/Cetus | Spotted Cetus Guard 6895 | -4/Cetus | Spotted Cetus Guard 6897 | -4/Cetus | Allies destroyed Cetus Guard 6897 | -4/Cetus | Allies destroyed Cetus Guard 6919 | -4/Cetus | Build established: Commander-Scout 6941 | -4/Cetus | Started Cetus Manufacturing Module 6966 | -4/Cetus | Manufactured an Enhanced Grunt 6991 | -4/Cetus | Manufactured an Enhanced Grunt 7016 | -4/Cetus | Manufactured an Enhanced Grunt 7041 | -4/Cetus | Manufactured an Enhanced Grunt 7066 | -4/Cetus | Manufactured an Enhanced Grunt 7144 | -4/Cetus | Discovered new exit (range 16) 7148 | -4/Cetus | Identified exit to Archives 7311 | -4/Cetus | Entered Archives 7311 | -4/Archives | Accompanied by 23 allies (A7) 7346 | -4/Archives | Unable to access archive contents 7347 | -4/Archives | Discovered exit to Research (range 13) 7370 | -4/Archives | Discovered new exit (range 15) 7373 | -4/Archives | Identified exit to Hub_04(d) 7378 | -4/Archives | Discovered exit to Hub_04(d) (range 16) 7424 | -4/Archives | Entered Hub_04(d) 7424 | -4/Hub_04(d) | Accompanied by 20 allies 7486 | -4/Hub_04(d) | Network Hub disabled 7524 | -4/Hub_04(d) | Spotted Lightning 7524 | -4/Hub_04(d) | Spotted Lightning 7525 | -4/Hub_04(d) | Lost 6 allies 7541 | -4/Hub_04(d) | Network Hub disabled 7543 | -4/Hub_04(d) | Spotted Lightning 7543 | -4/Hub_04(d) | Spotted Lightning 7543 | -4/Hub_04(d) | Spotted Lightning 7545 | -4/Hub_04(d) | Entered Research 7545 | -3/Research | Evolved 2 slots: Utility x2 7560 | -3/Research | Identified exit to Armory 7560 | -3/Research | Identified exit to Quarantine 7798 | -3/Research | Build established: Hacker-Scout 7997 | -3/Research | Spotted B-86 Titan 8036 | -3/Research | Spotted B-86 Titan 8042 | -3/Research | Found Exp. Sensor Array 8068 | -3/Research | Lost 3 parts (1n2u) 8095 | -3/Research | Search patrols dispatched 8189 | -3/Research | Spotted B-90 Cyclops 8192 | -3/Research | Entered Quarantine 8201 | -3/Quarantine | Found Alien Artifact 8201 | -3/Quarantine | Identified Subatomic Replicator 8223 | -3/Quarantine | Lost 3 parts (1n2u) 8330 | -3/Quarantine | Spotted Alpha 7 8337 | -3/Quarantine | Found Alien Launcher 8343 | -3/Quarantine | Found Alien Artifact 8343 | -3/Quarantine | Identified Core Reset Matrix 8343 | -3/Quarantine | Identified Sigix Terminator 8343 | -3/Quarantine | Used Core Reset Matrix 8347 | -3/Quarantine | Detected hypermatrix surge 8347 | -3/Quarantine | Sensed 13 artifacts in vicinity 8393 | -3/Quarantine | Found Phase Armor 8432 | -3/Quarantine | Discovered new exit (range 5) 8433 | -3/Quarantine | Identified exit to Research 8434 | -3/Quarantine | Lost 9 parts (2p1n5u1w) 8446 | -3/Quarantine | Core integrity fell below 50% 8465 | -3/Quarantine | Found Sigix Broadsword 8468 | -3/Quarantine | Core integrity fell below 20% 8468 | -3/Quarantine | System corruption reached 10% 8470 | -3/Quarantine | Entered Research 8470 | -2/Research | Evolved 2 slots: Propulsion x1, Utility x1 8484 | -2/Research | Identified exit to Access 8495 | -2/Research | Lost 7 parts (1p3n3u) 8606 | -2/Research | Spotted B-90 Cyclops 8616 | -2/Research | Found Unknown Device 8616 | -2/Research | Identified Adv. Force Booster 8719 | -2/Research | Identified exit to Testing 8740 | -2/Research | Entered Testing 8824 | -2/Testing | Build established: Scavenger-Mutant 8902 | -2/Testing | System corruption reached 10% 8907 | -2/Testing | Lost 3 parts (2n1u) 8950 | -2/Testing | Fired Sigix Terminator 8951 | -2/Testing | Core integrity fell below 50% 8951 | -2/Testing | Core integrity fell below 20% 8981 | -2/Testing | Lost 8 parts (1p4n3u) 8990 | -2/Testing | First assault squad dispatched 8994 | -2/Testing | Discovered exit to Access (range 15) 9000 | -2/Testing | Destroyed by L-61 Swordsman with Power Sword Last Messages --------------- 08987_ Identified Imp. Diametric Drive. 08987_ Faulty integration damages Faulty Imp. Diametric Drive (-56). 08989_ Dropped Faulty Imp. Diametric Drive. 08990_ ALERT: Significant disruption in Zone 8K, assault force dispatched. 08993_ C-30 ARC bursts open, deploying its payload. 08993_ G-73 Enforcer unfolds itself. 08993_ L-61 Swordsman unfolds itself. 08993_ G-73 Enforcer unfolds itself. 08993_ E-15 Imp unfolds itself. 08994_ EXIT=FOUND: ACCESS 08997_ Adv. Signal Interpreter blown off. 08997_ Imp. Targeting Computer blown off. 08997_ Adv. Targeting Computer blown off. 08997_ E-15 Imp destroyed. 08997_ Acquired 13 matter. 08998_ Acquired Unknown Flight Unit. 08998_ Identified Cesium-ion Thruster. Map ----- +----------------------------------------------------+ | " #??????????????# #????" ""??????????????? | | """ #??????????????# #??????????????????????? | | """" #??????????????# #??????????????????????? | | "" #??????????????# #??????????????????????? | | #??????????????# #??????????????????????? | | #######??????????????# #??????????????????????? | | ?????????????????????# #??????????????????????? | | ?????????????????????# #??????????????????????? | | ???????????########### #??????????????????????? | | ???????????# """"""" # #??????????????????????? | | ???????????# """"""" # #??????????????????????? | | ???????????# """"""" # #??????????????????????? | | ???????????# + #??????????????????????? | | ""???????# # #??????????????????????? | | """ ??????# #R #?#####????????????????? | | "T ??????# =# ##"""""#???????????????? | | ?""" ?????# =# # " " "#???????????????? | | ??"" ??????########### + " "#???????????????? | | ??? ?????????????????# # #???????????????? | | ?????????????????????# ###"""##???????????????? | | ?????????????????????# #??????????????????????? | | ?????????????????????# #??????????????????????? | | ?????????????????????# #??????????????????????? | | ?????????????????????# !#??????????????????????? | | ?????????????????????# gl #??????????????????????? | | ?????????????????????# g @#??????????????????????? | | ???????????????????? + g +??????????????????????? | | ??????????????????? # #??????????????????????? | | ?????????????????? #% #??????????????????????? | | ?????????????????###?# #??????????????????????? | | ????????????????????? #??????????????????????? | | ???????????????????? #??????????????????????? | | ??????????????????? < #??????????????????????? | | ??????????????????# #??????????????????????? | | ??????????????????####+###???????????????????????? | | ?????????????????????????????????????????????????? | | ?????????????????????????????????????????????????? | | ?????????????????????????????????????????????????? | | ?????????????????????????????????????????????????? | | ?????????????????????????????????????????????????? | | ?????????????????????????????????????????????????? | | ?????????????????????????????????????????????????? | | ?????????????????????????????????????????????????? | | ?????????????????????????????????????????????????? | | ?????????????????????????????????????????????????? | | ?????????????????????????????????????????????????? | | ?????????????????????????????????????????????????? | | ?????????????????????????????????????????????????? | | ?????????????????????????????????????????????????? | | ?????????????????????????????????????????????????? | +----------------------------------------------------+ Best States ------------- Heat Dissipation 77 Coolant Potential 100 Energy Generation 25 Energy Capacity 1300 Matter Stores 300 Matter Capacity 300 Sight Range 16 Robot Scan Range 20 Terrain Scan Density 210 Power Amplification 20 Additional Mass Support 9 Armor Coverage 225 Weapon Shielding 66 Evasion (%) 75 Targeting Accuracy 16 Target Analysis 8 Recoil Reduction 4 Force Boost 40 Offensive Hacking 38 Defensive Hacking 12 Trap Extractor Capacity 4 Item Schematics ----------------- None Robot Schematics ------------------ None Fabricated ------------ Imp. VTOL Module | x1 | -7/Factory Imp. VTOL Module | x1 | -7/Factory Exp. Sensor Array | x1 | -7/Factory Exp. Sensor Array | x1 | -7/Factory Imp. VTOL Module | x1 | -5/Factory Alien Tech Used ----------------- Core Expander Subatomic Replicator Core Reset Matrix Phase Armor Sigix Broadsword Sigix Terminator Achievements -------------- Hard Hitter Hehehe Challenges ------------ None Game ------ Seed ChromaticSniperRail Manual? 0 Play Time 01:59:56 Cumulative 132.0 hours Start 2025.03.17 @ 22:09:12 End 2025.03.18 @ 18:28:53 Sessions 2 Manual Loads 0 Difficulty Rogue Special Mode None Game No. 95 Rogue 95 Adventurer 0 Explorer 0 Win Type - Total 6 Types 5/0/1/0/0/0/0/0/0 Lore% 65 Gallery% 62 Achievement% 59 Wizard Run 0 Options --------- Layout 1 ASCII 0 Keyboard 0 Movement Mouse Keybinds 0 Fullscreen 2 Font 32/SmallcapsGlow Map View 50x35 Zoom Use 0% Tactical HUD 1 Map Filters NONE Filters NONE Steam 1 RUN: 1c3ebb0b-3add-4095-9327-3af88bffd339